fUST/lending_fUST_20260326
["ID","MTS","AMOUNT","RATE_DAILY","PERIOD"]
[39315,1774517441026,-214.881172,8.768e-05,2]
[39316,1774517441036,-600.0,8.786e-05,2]
[39317,1774517441045,-1101.26741693,8.883e-05,2]
[39318,1774517441054,-643.84490812,9.003e-05,7]
[39319,1774517441063,-2533.63484157,9.003e-05,7]
[39320,1774517441072,-1401.0,9.068e-05,2]
[39321,1774517441082,-642.0,9.068e-05,2]
[39322,1774517441091,-2195.0,9.068e-05,2]
[39323,1774517441100,-439.0,9.068e-05,2]
[39324,1774517441109,-736.0,9.068e-05,2]
[39325,1774517441119,-184.0,9.068e-05,2]
[39326,1774517441128,-3751.761,9.113e-05,2]
[39327,1774517441137,-2390.6031893,9.131e-05,2]
[39328,1774517441147,-194.5428077,9.178e-05,2]
[39329,1774517441156,-533.4156724,9.362e-05,2]
[39330,1774517441166,-455.0158722,9.556e-05,2]
[39331,1774517441175,-720.0,9.664e-05,2]
[39332,1774517441184,-410.45112893,9.696e-05,2]
[39333,1774517441194,-324.9645774,9.997e-05,2]
[39334,1774517441203,-1957.80874121,0.00010102,2]
[39335,1774517441212,-864.0,0.00010631,2]
[39336,1774517441222,-454.9280236,0.00010822,2]
[39337,1774517441231,-15380.3736,0.00010959,2]
[39338,1774517441241,-151.0,0.00011,2]
[39339,1774517441250,-151.0,0.00011,2]
[39340,1774517441260,-151.0,0.00011,2]
[39341,1774517441271,-151.0,0.00011,2]
[39342,1774517441280,-151.0,0.00011,2]
[39343,1774517441289,-151.0,0.00011,2]
[39344,1774517441298,-829.72514614,0.00011319,2]
[39345,1774517441307,-341.34209054,0.00011319,2]
[39346,1774517441316,-829.72514614,0.00011319,2]
[39347,1774517441325,-829.72514614,0.00011319,2]
[39348,1774517441335,-829.72514614,0.00011319,2]
[39349,1774517441344,-829.72514614,0.00011319,2]
[39350,1774517441353,-829.72514614,0.00011319,2]
[39351,1774517441362,-829.72514614,0.00011319,2]
[39352,1774517441371,-829.72514614,0.00011319,2]
[39353,1774517441380,-829.72514614,0.00011319,2]
[39354,1774517441389,-829.72514614,0.00011319,2]
[39355,1774517441398,-829.72514614,0.00011319,2]
[39356,1774517441407,-829.72514614,0.00011319,2]
[39357,1774517441416,-829.72514614,0.00011319,2]
[39358,1774517441425,-829.72514614,0.00011319,2]
[39359,1774517441434,-829.72514614,0.00011319,2]
[39360,1774517441443,-829.72514614,0.00011319,2]
[39361,1774517441452,-829.72514614,0.00011319,2]
[39362,1774517441461,-829.72514614,0.00011319,2]
[39363,1774517441470,-829.72514614,0.00011319,2]
[39364,1774517441480,-146.22787037,0.00011319,2]
[39370,1774517443448,-683.49727577,0.00011319,2]
[39371,1774517443457,-431.98320505,0.00011319,2]
[39372,1774517443614,-382.35591491,0.00011319,2]
[39373,1774517443626,-15.38602618,0.00011319,2]
[39374,1774517443636,-643.45019306,0.00011319,2]
[39375,1774517443648,-186.27495308,0.00011319,2]
[39376,1774517443658,-829.72514614,0.00011319,2]
[39377,1774517443668,-414.99490078,0.00011319,2]
[39380,1774517446221,-414.73024536,0.00011319,2]
[39381,1774517446230,-829.72514614,0.00011319,2]
[39382,1774517446240,-728.96120498,0.0001132,2]
[39384,1774517446249,-1903.65887106,0.0001132,2]
[39386,1774517446494,-1152.35821092,0.0001132,2]
[39387,1774517446505,-151.0,0.000115,2]
[39388,1774517446514,-1895.974,0.00011569,2]
[39389,1774517446524,-454.8116172,0.00011632,2]
[39390,1774517446532,-202.58157079,0.00011686,2]
[39391,1774517446543,-1000.0,0.00011694,2]
[39392,1774517446552,-500.0,0.0001192,2]
[39393,1774517446562,-500.0,0.0001192,2]
[39394,1774517446571,-445.202766,0.00011989,2]
[39395,1774517446580,-162.380719,0.00011989,2]
[39396,1774517446590,-537.6845,0.00011989,2]
[39397,1774517446599,-1957.856,0.00011989,2]
[39398,1774517446609,-537.6845,0.00011989,2]
[39399,1774517446618,-162.380719,0.00011989,2]
[39400,1774517446627,-168.3888056,0.00011989,2]
[39401,1774517446636,-174.61919141,0.00011989,2]
[39402,1774517446647,-158.47967252,0.00011989,2]
[39403,1774517446657,-181.08010149,0.00011989,2]
[39404,1774517446666,-187.78006525,0.00011989,2]
[39405,1774517446675,-194.72792766,0.00011989,2]
[39406,1774517446685,-201.93286099,0.00011989,2]
[39407,1774517446694,-209.40437684,0.00011989,2]
[39408,1774517446704,-217.15233878,0.00011989,2]
[39409,1774517446714,-225.18697532,0.00011989,2]
[39410,1774517446724,-233.51889341,0.00011989,2]
[39411,1774517446733,-242.15909246,0.00011989,2]
[39412,1774517446742,-251.11897888,0.00011989,2]
[39413,1774517446752,-297.58966468,0.00011989,2]
[39414,1774517446761,-2150.738,0.00011989,2]
[39415,1774517446771,-151.0,0.00012,2]
[39416,1774517446780,-557.5788265,0.00012044,2]
[39417,1774517446790,-2030.296672,0.00012044,2]
[39418,1774517446799,-1401.0,0.00012068,2]
[39419,1774517446808,-642.0,0.00012068,2]
[39420,1774517446818,-2195.0,0.00012068,2]
[39421,1774517446828,-439.0,0.00012068,2]
[39422,1774517446837,-735.0,0.00012068,2]
[39423,1774517446847,-184.0,0.00012068,2]
[39424,1774517446856,-578.20924308,0.00012099,2]
[39425,1774517446865,-2105.41764886,0.00012099,2]
[39426,1774517446875,-599.60298507,0.00012154,2]
[39427,1774517446884,-2183.31810187,0.00012154,2]
[39428,1774517446893,-99.4091744,0.00012209,2]
[39435,1774517481558,-642.0,9.309e-05,2]
[39436,1774517498556,-300.0,0.00011318,2]
[39437,1774517498642,-359.954,0.00011318,2]
[39438,1774517498661,-300.0,0.00011319,2]
[39439,1774517498672,-359.954,0.00011319,2]
[39440,1774517498690,-330.07142739,0.00011319,2]
[39521,1774518633640,-347.005,7.334e-05,2]
[39522,1774518633693,-176.995,7.334e-05,2]
[39523,1774518633703,-300.0,7.334e-05,2]
[39525,1774518633713,-181.4227,7.907e-05,2]
[39527,1774518633722,-169.297252,8.038e-05,2]
[39529,1774518633732,-169.297252,8.038e-05,120]
[39531,1774518633742,-359.954,8.134e-05,2]
[39532,1774518633751,-500.0,8.173e-05,2]
[39533,1774518633761,-500.0,8.173e-05,2]
[39534,1774518633770,-300.0,8.199e-05,2]
[39535,1774518633779,-298.0,8.199e-05,2]
[39536,1774518633788,-1353.1523532,8.2e-05,2]
[39829,1774518640987,-2651.17601302,8.2e-05,2]
[39831,1774518641000,-13942.0,8.2e-05,2]
[39837,1774518641045,-6903.88281063,8.2e-05,2]
[39955,1774518646580,-2652.65696771,8.1e-05,2]
[39959,1774518648642,-69500.0,8.1e-05,2]
[40032,1774519832434,-161.31399345,7.743e-05,2]
[40034,1774519832444,-287.963,7.84e-05,2]
[40035,1774519832453,-530.0,7.84e-05,2]
[40036,1774519832462,-300.0,7.872e-05,2]
[40037,1774519832471,-300.0,7.872e-05,2]
[40038,1774519832480,-300.0,7.872e-05,2]
[40039,1774519832490,-1200.0,7.872e-05,2]
[40040,1774519832499,-500.0,7.873e-05,2]
[40041,1774519832509,-500.0,7.873e-05,2]
[40042,1774519832518,-514.6877209,7.873e-05,2]
[40043,1774519832527,-500.0,7.873e-05,2]
[40044,1774519832536,-500.0,7.873e-05,2]
[40045,1774519832545,-500.0,7.873e-05,2]
[40046,1774519832555,-500.0,7.873e-05,2]
[40047,1774519832564,-500.0,7.873e-05,2]
[40048,1774519832574,-160.14246416,7.873e-05,2]
[40049,1774519832583,-500.0,7.899e-05,2]
[40050,1774519832593,-500.0,7.899e-05,2]
[40051,1774519832602,-500.0,7.899e-05,2]
[40052,1774519832611,-224.63502651,7.899e-05,2]
[40053,1774519832620,-457.8641787,7.899e-05,2]
[40065,1774519838511,-42.1358213,7.899e-05,2]
[40067,1774519838520,-226.60351084,7.899e-05,2]
[40076,1774519838673,-273.39648916,7.899e-05,2]
[40077,1774519838683,-500.0,7.899e-05,2]
[40078,1774519838692,-500.0,7.899e-05,2]
[40080,1774519838701,-500.0,7.899e-05,2]
[40081,1774519838710,-500.0,7.899e-05,2]
[40082,1774519838719,-500.0,7.899e-05,2]
[40083,1774519838729,-247.2963684,7.899e-05,2]
[40084,1774519838738,-500.0,7.899e-05,2]
[40085,1774519838747,-500.0,7.899e-05,2]
[40086,1774519838757,-500.0,7.899e-05,2]
[40087,1774519838766,-500.0,7.899e-05,2]
[40088,1774519838779,-500.0,7.899e-05,2]
[40089,1774519838788,-500.0,7.899e-05,2]
[40090,1774519838798,-500.0,7.899e-05,2]
[40091,1774519838807,-500.0,7.899e-05,2]
[40092,1774519838816,-500.0,7.899e-05,2]
[40093,1774519838825,-500.0,7.899e-05,2]
[40094,1774519838834,-500.0,7.899e-05,2]
[40095,1774519838843,-500.0,7.899e-05,2]
[40096,1774519838853,-500.0,7.899e-05,2]
[40097,1774519838862,-500.0,7.899e-05,2]
[40098,1774519838871,-500.0,7.899e-05,2]
[40099,1774519838880,-500.0,7.899e-05,2]
[40100,1774519838890,-500.0,7.899e-05,2]
[40101,1774519838899,-500.0,7.899e-05,2]
[40102,1774519838909,-500.0,7.899e-05,2]
[40103,1774519838918,-500.0,7.899e-05,2]
[40104,1774519838927,-500.0,7.899e-05,2]
[40105,1774519838936,-500.0,7.899e-05,2]
[40106,1774519838945,-500.0,7.899e-05,2]
[40107,1774519838954,-500.0,7.899e-05,2]
[40108,1774519838963,-500.0,7.899e-05,2]
[40109,1774519838972,-500.0,7.899e-05,2]
[40110,1774519838981,-500.0,7.899e-05,2]
[40111,1774519838990,-500.0,7.899e-05,2]
[40112,1774519839000,-500.0,7.899e-05,2]
[40113,1774519839009,-500.0,7.899e-05,2]
[40114,1774519839018,-500.0,7.899e-05,2]
[40115,1774519839028,-500.0,7.899e-05,2]
[40116,1774519839037,-500.0,7.899e-05,2]
[40117,1774519839047,-500.0,7.899e-05,2]
[40118,1774519839056,-163.64546515,7.899e-05,2]
[40133,1774519843861,-336.35453485,7.899e-05,2]
[40134,1774519843871,-500.0,7.899e-05,2]
[40135,1774519843881,-234.81892467,7.899e-05,2]
[40136,1774519844131,-265.18107533,7.899e-05,2]
[40137,1774519844141,-500.0,7.899e-05,2]
[40138,1774519844151,-415.0,7.899e-05,2]
[40139,1774519844161,-500.0,7.899e-05,2]
[40140,1774519844170,-260.45650628,7.899e-05,2]
[40144,1774519847006,-239.54349372,7.899e-05,2]
[40145,1774519847016,-27279.28590294,7.9e-05,2]
[40146,1774519847115,-2758.61193207,7.9e-05,2]
[418904800,1774521032552,-516.0,6.737e-05,2]
[418904802,1774521032561,-188.74625108,6.737e-05,2]
[418904804,1774521032571,-500.0,7.092e-05,2]
[418904806,1774521032580,-144.8992831,7.465e-05,2]
[418904989,1774521038727,-355.1007169,7.465e-05,2]
[418904990,1774521038737,-300.0,7.499e-05,2]
[418904991,1774521038746,-1200.0,7.499e-05,2]
[418904992,1774521038755,-6934.88738068,7.5e-05,2]
[418904993,1774521038767,-317.96272121,7.5e-05,2]
[418905002,1774521041344,-543.71621583,7.5e-05,2]
[418905003,1774521041459,-1000.0,7.5e-05,2]
[418905028,1774521046853,-524.0,7.5e-05,2]
[418905029,1774521047136,-686.84806561,7.5e-05,2]
[418905030,1774521047150,-2824.05635683,7.5e-05,2]
[418905031,1774521047161,-500.0,7.573e-05,2]
[418905032,1774521047172,-500.0,7.599e-05,2]
[418905033,1774521047183,-500.0,7.599e-05,2]
[418905034,1774521047192,-500.0,7.599e-05,2]
[418905035,1774521047202,-500.0,7.599e-05,2]
[418905036,1774521047211,-435.0,7.599e-05,2]
[418905037,1774521047221,-360.8107076,7.599e-05,2]
[418905038,1774521047231,-5357.53770654,7.6e-05,2]
[418905045,1774521048715,-5439.00311301,7.6e-05,2]
[418905046,1774521048727,-500.0,7.6e-05,2]
[418905054,1774521061855,-1649.97942739,7.6e-05,2]
[418905126,1774522231792,-151.0,7.13e-05,2]
[418905128,1774522231802,-165.32,7.13e-05,2]
[418905134,1774522231847,-355.68,7.13e-05,2]
[418905136,1774522231855,-230.37,7.35e-05,2]
[418905138,1774522231865,-300.0,7.372e-05,2]
[418905140,1774522231874,-467.17457458,7.372e-05,2]
[418905143,1774522231900,-12.82542542,7.372e-05,2]
[418905145,1774522231909,-160.13943752,7.373e-05,2]
[418905147,1774522231920,-158.13902116,7.373e-05,2]
[418905150,1774522231930,-257.98307107,7.373e-05,2]
[418905152,1774522231940,-459.07304483,7.373e-05,2]
[418905290,1774522246305,-151.0,6.916e-05,2]
[418905291,1774522246315,-40.92695517,7.373e-05,2]
[418905292,1774522246324,-90.40288666,7.373e-05,2]
[418905293,1774522246358,-409.59711334,7.373e-05,2]
[418905294,1774522246367,-500.0,7.373e-05,2]
[418905295,1774522246376,-500.0,7.373e-05,2]
[418905296,1774522246386,-500.0,7.373e-05,2]
[418905297,1774522246395,-500.0,7.373e-05,2]
[418905298,1774522246404,-160.14078146,7.373e-05,2]
[418905299,1774522246413,-257.53760697,7.373e-05,2]
[418905300,1774522246422,-158.13047824,7.373e-05,2]
[418905301,1774522246431,-313.48051779,7.373e-05,2]
[418905313,1774522836280,-1000.0,6.485e-05,2]
[418905314,1774522837279,-1000.0,6.485e-05,2]
[418905315,1774522837590,-1000.0,6.485e-05,2]
[418905316,1774522837903,-782.0,6.485e-05,2]
[418905317,1774522837924,-167.0334047,6.485e-05,2]
[418905318,1774522837944,-50.9665953,6.485e-05,2]
[418905319,1774522838209,-461.0334047,6.485e-05,2]
[418905321,1774522862312,-151.0,7.034e-05,2]
[418905323,1774522924109,-184.296,7.154e-05,2]
[418905326,1774523058462,-331.31926133,7.2e-05,2]
[418905327,1774523058485,-368.95924714,7.2e-05,2]
[418905328,1774523058508,-218.44371006,7.2e-05,2]
[418905329,1774523058530,-81.27778147,7.2e-05,2]
[418905330,1774523064087,-274.49367851,7.2e-05,2]
[418905331,1774523064111,-152.02471924,7.2e-05,2]
[418905332,1774523064135,-155.40325932,7.2e-05,2]
[418905333,1774523064223,-418.07834293,7.2e-05,2]
[418905334,1774523065178,-1000.0,7.2e-05,2]
[418905335,1774523066233,-1000.0,7.2e-05,2]
[418905336,1774523067153,-1000.0,7.2e-05,2]
[418905337,1774523068093,-1000.0,7.2e-05,2]
[418905338,1774523099468,-152.76355866,7.199e-05,2]
[418905339,1774523099490,-247.23644134,7.199e-05,2]
[418905349,1774523141619,-200.0,7.198e-05,2]
[418905350,1774523141642,-118.52098694,7.199e-05,2]
[418905351,1774523141664,-500.0,7.199e-05,2]
[418905352,1774523141754,-594.55586424,7.199e-05,2]
[418905353,1774523141779,-500.0,7.199e-05,2]
[418905354,1774523141800,-86.92314882,7.199e-05,2]
[418905355,1774523143601,-176.8404544,7.199e-05,2]
[418905356,1774523143622,-500.0,7.199e-05,2]
[418905357,1774523143643,-500.0,7.199e-05,2]
[418905358,1774523143663,-374.99718914,7.199e-05,2]
[418905359,1774523143684,-448.16235646,7.199e-05,2]
[418905360,1774523201386,-171.88188786,7.1e-05,2]
[418905361,1774523201409,-208.20489731,7.1e-05,2]
[418905362,1774523201429,-500.0,7.173e-05,2]
[418905363,1774523201450,-500.0,7.173e-05,2]
[418905364,1774523201471,-500.0,7.173e-05,2]
[418905365,1774523201491,-119.91321483,7.173e-05,2]
[418905366,1774523202658,-380.08678517,7.173e-05,2]
[418905381,1774523278621,-51.83764354,7.199e-05,2]
[418905382,1774523278643,-116.16235646,7.199e-05,2]
[418905387,1774523401949,-2000.0,7.1e-05,2]
[418905388,1774523403005,-2000.0,7.1e-05,2]
[418905389,1774523403893,-2000.0,7.1e-05,2]
[418905390,1774523404718,-2000.0,7.1e-05,2]
[418905391,1774523405556,-2000.0,7.1e-05,2]
[418905392,1774523424150,-700.0,7.1e-05,2]
[418905492,1774523438092,-7191.7702404,7.1e-05,2]
[418905498,1774523438145,-987.62829401,7.1e-05,2]
[418905507,1774523438252,-1677.61615989,7.1e-05,2]
[418905512,1774523440866,-3515.3127573,7.1e-05,2]
[418905517,1774523441506,-335.63148052,7.1e-05,2]
[418905526,1774523448497,-17917.48224,7.1e-05,2]
[418905531,1774523545024,-237.032,6.958e-05,2]
[418905532,1774523545046,-500.0,7.073e-05,2]
[418905533,1774523545067,-500.0,7.073e-05,2]
[418905534,1774523545089,-173.90495195,7.073e-05,2]
[418905535,1774523545110,-300.0,7.099e-05,2]
[418905536,1774523545132,-289.06304805,7.099e-05,2]
[418905537,1774523547449,-210.93695195,7.099e-05,2]
[418905538,1774523547474,-1789.06304805,7.1e-05,2]
[418905539,1774523548250,-2000.0,7.1e-05,2]
[418905540,1774523549115,-2000.0,7.1e-05,2]
[418905541,1774523549995,-2000.0,7.1e-05,2]
[418905542,1774523550786,-2000.0,7.1e-05,2]
[418905543,1774523551654,-638.56810028,7.099e-05,2]
[418905544,1774523551676,-1361.43189972,7.1e-05,2]
[418905545,1774523552493,-2000.0,7.1e-05,2]
[418905546,1774523553382,-2000.0,7.1e-05,2]
[418905547,1774523554314,-2000.0,7.1e-05,2]
[418905550,1774523584603,-151.0,6.886e-05,2]
[418905551,1774523584624,-49.0,7.098e-05,2]
[418905554,1774523595142,-305.0,7.073e-05,2]
[418905621,1774523797736,-2945.804244,6.883e-05,2]
[418905740,1774524624332,-191.590741,2.968e-05,2]
[418905759,1774524632238,-191.590741,4.452e-05,2]
[418905760,1774524632248,-191.590741,5.936e-05,2]
[418905761,1774524632258,-318.598418,6.8e-05,2]
[418905762,1774524632269,-89.15598854,6.8e-05,2]
[418905763,1774524632279,-905.25618855,6.8e-05,2]
[418905764,1774524632289,-820.72033335,6.8e-05,2]
[418905765,1774524632299,-189.626,6.86e-05,2]
[418905766,1774524632309,-1000.0,6.871e-05,2]
[418905767,1774524632380,-300.0,6.872e-05,2]
[418905768,1774524632393,-300.0,6.872e-05,2]
[418905769,1774524632403,-270.0,6.872e-05,2]
[418905770,1774524632413,-324.79807761,6.873e-05,2]
[418905782,1774524638325,-106.54254571,6.873e-05,2]
[418905783,1774524638334,-318.39668227,6.873e-05,2]
[418905788,1774524638381,-181.89771195,6.873e-05,2]
[418905789,1774524638390,-500.0,6.873e-05,2]
[418905790,1774524638400,-204.10228805,6.873e-05,2]
[418905791,1774524638493,-295.89771195,6.873e-05,2]
[418905792,1774524638503,-500.11250898,6.873e-05,2]
[418905793,1774524638513,-500.0,6.873e-05,2]
[418905794,1774524638522,-500.68438065,6.873e-05,2]
[418905795,1774524638532,-500.0,6.873e-05,2]
[418905796,1774524638550,-500.0,6.873e-05,2]
[418905797,1774524638559,-500.0,6.873e-05,2]
[418905798,1774524638568,-263.14182845,6.899e-05,2]
[418905871,1774524641129,-193.06468532,6.899e-05,2]
[418905873,1774524641138,-500.0,6.899e-05,2]
[418905875,1774524641147,-500.0,6.899e-05,2]
[418905877,1774524641156,-500.0,6.899e-05,2]
[418905879,1774524641165,-500.0,6.899e-05,2]
[418905881,1774524641175,-500.0,6.899e-05,2]
[418905883,1774524641184,-500.0,6.899e-05,2]
[418905885,1774524641193,-500.0,6.899e-05,2]
[418905887,1774524641202,-500.0,6.899e-05,2]
[418905889,1774524641211,-500.0,6.899e-05,2]
[418905891,1774524641220,-500.0,6.899e-05,2]
[418905893,1774524641230,-83.04892485,6.899e-05,2]
[418905895,1774524641241,-264.03822423,6.899e-05,2]
[418905897,1774524641250,-116.32431464,6.899e-05,2]
[418905899,1774524641260,-383.67568536,6.899e-05,2]
[418905901,1774524641270,-500.0,6.899e-05,2]
[418905903,1774524641279,-500.0,6.899e-05,2]
[418905905,1774524641289,-335.59066165,6.899e-05,2]
[418905967,1774524648360,-164.40933835,6.899e-05,2]
[418905969,1774524648370,-500.0,6.899e-05,2]
[418905971,1774524648380,-500.0,6.899e-05,2]
[418905972,1774524648389,-500.0,6.899e-05,2]
[418905973,1774524648398,-500.0,6.899e-05,2]
[418905974,1774524648407,-500.0,6.899e-05,2]
[418905975,1774524648416,-500.0,6.899e-05,2]
[418905976,1774524648426,-500.0,6.899e-05,2]
[418905977,1774524648435,-162.48392976,6.899e-05,2]
[418905978,1774524648446,-337.51607024,6.899e-05,2]
[418905979,1774524648456,-500.0,6.899e-05,2]
[418905980,1774524648465,-500.0,6.899e-05,2]
[418905981,1774524648475,-500.0,6.899e-05,2]
[418905982,1774524648484,-500.0,6.899e-05,2]
[418905983,1774524648493,-500.0,6.899e-05,2]
[418905984,1774524648503,-500.0,6.899e-05,2]
[418905985,1774524648513,-500.0,6.899e-05,2]
[418905986,1774524648522,-500.0,6.899e-05,2]
[418905987,1774524648532,-138.81178266,6.899e-05,2]
[418905988,1774524648544,-450.9159439,6.899e-05,2]
[418905989,1774524648553,-13736.4397561,6.9e-05,2]
[418905993,1774524648632,-8920.02511661,6.9e-05,2]
[418905994,1774524648647,-4599.58984901,6.9e-05,2]
[418905995,1774524648658,-2509.34647797,6.9e-05,2]
[418905996,1774524648670,-38738.83137432,6.9e-05,2]
[418906014,1774524660280,-1387.08054294,6.9e-05,2]
[418906017,1774524689419,-191.590741,6.873e-05,2]
[418906131,1774525832441,-1421.2607696,5.754e-05,2]
[418906132,1774525832453,-2448.0961595,5.754e-05,2]
[418906133,1774525832462,-503.0,5.754e-05,2]
[418906134,1774525832472,-2326.54636702,5.835e-05,2]
[418906135,1774525832571,-243.04345508,5.835e-05,2]
[418906136,1774525832581,-436.4101779,6.572e-05,2]
[418906159,1774525838578,-30.5898221,6.572e-05,2]
[418906160,1774525838588,-501.87377886,6.573e-05,2]
[418906161,1774525838597,-500.0,6.573e-05,2]
[418906162,1774525838606,-500.0,6.573e-05,2]
[418906163,1774525838615,-213.05411013,6.573e-05,2]
[418906164,1774525838626,-500.0,6.573e-05,2]
[418906165,1774525838635,-500.0,6.573e-05,2]
[418906166,1774525838644,-500.0,6.595e-05,2]
[418906167,1774525838653,-500.0,6.595e-05,2]
[418906168,1774525838662,-500.0,6.595e-05,2]
[418906169,1774525838671,-166.88880073,6.595e-05,2]
[418906170,1774525838681,-500.0,6.595e-05,2]
[418906171,1774525838690,-500.0,6.595e-05,2]
[418906173,1774525838700,-454.41419184,6.595e-05,2]
[418906175,1774525838709,-500.0,6.595e-05,2]
[418906177,1774525838718,-500.0,6.595e-05,2]
[418906179,1774525838727,-500.0,6.595e-05,2]
[418906180,1774525838737,-500.0,6.595e-05,2]
[418906181,1774525838746,-500.0,6.595e-05,2]
[418906182,1774525838756,-500.0,6.595e-05,2]
[418906183,1774525838765,-500.0,6.595e-05,2]
[418906184,1774525838775,-500.0,6.595e-05,2]
[418906185,1774525838784,-500.0,6.595e-05,2]
[418906186,1774525838793,-500.0,6.595e-05,2]
[418906187,1774525838802,-500.0,6.595e-05,2]
[418906188,1774525838811,-500.0,6.595e-05,2]
[418906189,1774525838820,-500.0,6.595e-05,2]
[418906190,1774525838830,-500.0,6.595e-05,2]
[418906191,1774525838839,-500.0,6.595e-05,2]
[418906192,1774525838849,-628.9126562,6.595e-05,2]
[418906193,1774525838858,-500.0,6.595e-05,2]
[418906194,1774525838867,-500.0,6.595e-05,2]
[418906195,1774525838876,-500.0,6.595e-05,2]
[418906196,1774525838885,-500.0,6.595e-05,2]
[418906197,1774525838894,-500.0,6.595e-05,2]
[418906198,1774525838904,-500.0,6.595e-05,2]
[418906199,1774525838913,-500.0,6.595e-05,2]
[418906200,1774525838922,-500.0,6.595e-05,2]
[418906201,1774525838932,-500.0,6.595e-05,2]
[418906202,1774525838941,-500.0,6.595e-05,2]
[418906203,1774525838951,-500.0,6.595e-05,2]
[418906204,1774525838960,-500.0,6.595e-05,2]
[418906205,1774525838969,-500.0,6.595e-05,2]
[418906206,1774525838978,-500.0,6.595e-05,2]
[418906207,1774525838988,-500.0,6.595e-05,2]
[418906208,1774525838997,-500.0,6.595e-05,2]
[418906209,1774525839007,-500.0,6.595e-05,2]
[418906210,1774525839016,-500.0,6.595e-05,2]
[418906211,1774525839025,-500.0,6.595e-05,2]
[418906212,1774525839034,-500.0,6.595e-05,2]
[418906213,1774525839043,-500.0,6.595e-05,2]
[418906214,1774525839053,-500.0,6.595e-05,2]
[418906215,1774525839063,-500.0,6.595e-05,2]
[418906216,1774525839072,-500.0,6.595e-05,2]
[418906217,1774525839081,-491.12955567,6.595e-05,2]
[418906218,1774525839091,-500.0,6.595e-05,2]
[418906219,1774525839100,-500.0,6.595e-05,2]
[418906220,1774525839109,-151.0,6.598e-05,2]
[418906221,1774525839119,-151.0,6.598e-05,2]
[418906222,1774525839128,-151.0,6.598e-05,2]
[418906223,1774525839139,-151.0,6.598e-05,2]
[418906224,1774525839148,-151.0,6.598e-05,2]
[418906225,1774525839158,-151.0,6.598e-05,2]
[418906226,1774525839167,-151.0,6.598e-05,2]
[418906227,1774525839177,-151.0,6.598e-05,2]
[418906228,1774525839186,-151.0,6.598e-05,2]
[418906229,1774525839195,-151.0,6.6e-05,2]
[418906230,1774525839204,-151.0,6.6e-05,2]
[418906231,1774525839215,-151.0,6.6e-05,2]
[418906232,1774525839224,-500.0,6.653e-05,2]
[418906233,1774525839235,-585.94083427,6.673e-05,2]
[418906234,1774525839244,-502.79166834,6.673e-05,2]
[418906235,1774525839255,-504.30869842,6.673e-05,2]
[418906236,1774525839264,-500.4097529,6.673e-05,2]
[418906237,1774525839275,-39576.8069556,6.673e-05,2]
[418906238,1774525839285,-151.0,6.673e-05,2]
[418906239,1774525839295,-151.0,6.673e-05,2]
[418906240,1774525839304,-206.990741,6.673e-05,2]
[418906241,1774525839314,-197.449041,6.799e-05,2]
[418906242,1774525839324,-197.449041,6.799e-05,2]
[418906243,1774525839335,-197.449041,6.799e-05,2]
[418906244,1774525839345,-197.449041,6.799e-05,2]
[418906245,1774525839355,-197.449041,6.799e-05,2]
[418906246,1774525839364,-197.449041,6.799e-05,2]
[418906247,1774525839373,-197.449041,6.799e-05,2]
[418906248,1774525839382,-197.449041,6.799e-05,2]
[418906249,1774525839391,-197.449041,6.799e-05,2]
[418906250,1774525839401,-197.449041,6.799e-05,2]
[418906251,1774525839410,-197.449041,6.799e-05,2]
[418906252,1774525839419,-197.449041,6.799e-05,2]
[418906253,1774525839428,-197.449041,6.8e-05,2]
[418906254,1774525839438,-197.449041,6.8e-05,2]
[418906255,1774525839448,-197.449041,6.8e-05,2]
[418906256,1774525839457,-197.449041,6.8e-05,2]
[418906257,1774525839466,-648.75394514,6.813e-05,2]